Cogmind - Beta 11.1 @@@ ROGUE MODE // 2022.06.01 @ 00:47:03 Player: Savant Result: Smashed by cave-in Performance ------------- Evolutions (3) 1500 Regions Visited (8) 1600 Robots Destroyed (144) 720 Value Destroyed (4118) 4118 Prototype IDs (10) 200 Alien Tech Used (0) 0 Bonus (1937) 1937 TOTAL SCORE: 10075 Bonus ------- High Alert Combat Kills 424 Follower Combat Kills 223 Entered Garrisons 400 Used RIF Installer 1000 Friendly Fire -110 Cogmind --------- Core Integrity 0/700 Matter 270/300 Energy 100/100 System Corruption 6% Temperature Cool (0) Movement Treading (160) Location -7/Factory Parts ------- > --- POWER (1) -------- (None) > --- PROPULSION (2) --- Light Treads > --- UTILITY (8) ------ Improved Cooling System Improved Melee Analysis Suite Microactuators Hacking Suite > --- WEAPON (2) ------- Flak Gun Great Axe > --- INVENTORY (5) ---- Relay Coupler [Specialist] (24) Plasma Cannon Heavy Missile Launcher Improved Datajack Power Maul Peak State ------------ > --- POWER ------------ Nuclear Core > --- PROPULSION ------- Improved Carbon-fiber Leg Wheel > --- UTILITY ---------- Improved Cooling System Large Storage Unit Improved Melee Analysis Suite Hacking Suite System Shield Relay Coupler [NC] Relay Coupler [Sentry] Relay Coupler [Hunter] > --- WEAPON ----------- Flak Gun Flak Gun > --- INVENTORY -------- Structural Scanner Microactuators Relay Coupler [NC] Relay Coupler [Specialist] Recalibrator Heavy Particle Gun Plasma Cannon Enhanced Autogun Flak Gun Heavy Missile Launcher Improved Datajack Remote Datajack Great Maul Great Axe Great Axe [Rating: 46] Favorites ----------- Power Cooled Ion Engine Engine Cooled Ion Engine Power Core Nuclear Core Propulsion Armored Wheel Treads Light Treads Leg Improved Carbon-fiber Leg Wheel Armored Wheel Flight Unit Flight Unit Utility Large Storage Unit Device Cooling System Storage Large Storage Unit Processor Improved Melee Analysis Suite Hackware System Shield Protection Hardened Light Armor Plating Weapon Flak Cannon Energy Gun Improved EM Shotgun Energy Cannon Plasma Cannon Ballistic Gun High-powered Shotgun Ballistic Cannon Flak Cannon Launcher Missile Launcher Impact Weapon Great Maul Slashing Weapon Scythe Special Melee Weapon Datajack Build | -11 -10 -10 -9 -9 -9 -8 -8 -7 ------- Run | Scr Mat Min Mat Sto Gar Mat Gar Fac Slots Evolved 6 | . . . 2 . . 2 . 2 Power . | . . . . . . . . . Propulsion . | . . . . . . . . . Utility 6 | . . . 2 . . 2 . 2 Weapon . | . . . . . . . . . Parts Attached 143 | 6 14 4 22 15 4 9 16 53 Power 15 | 1 4 1 2 2 . 1 1 3 Engine 14 | 1 4 1 2 2 . 1 1 2 Core 1 | . . . . . . . . 1 Reactor . | . . . . . . . . . Propulsion 25 | 2 4 1 5 . . 1 3 9 Treads 11 | 1 1 1 2 . . 1 1 4 Leg 1 | . . . . . . . . 1 Wheel 11 | 1 3 . 2 . . . 1 4 Hover . | . . . . . . . . . Flight 2 | . . . 1 . . . 1 . Utility 36 | 1 3 . 8 3 1 5 3 12 Device 16 | . 2 . 3 2 . 3 . 6 Storage 2 | 1 1 . . . . . . . Processor 1 | . . . . . . . . 1 Hackware 6 | . . . 1 1 . . . 4 Protection 11 | . . . 4 . 1 2 3 1 Artifact . | . . . . . . . . . Weapon 67 | 2 3 2 7 10 3 2 9 29 Energy Gun 6 | 1 1 . . 1 . . 2 1 Energy Cannon 1 | . . . . . . . . 1 Ballistic Gun 23 | 1 1 1 1 4 1 . 2 12 Ballistic Cannon 8 | . . 1 3 2 1 . 1 . Launcher 5 | . 1 . 1 . 1 . 1 1 Special Weapon . | . . . . . . . . . Impact Weapon 6 | . . . . . . 1 1 4 Slashing Weapon 13 | . . . 2 3 . 1 2 5 Piercing Weapon . | . . . . . . . . . Special Melee Weapon 5 | . . . . . . . . 5 Unidentified Prototypes 5 | . . . 2 1 . . . 2 Parts Lost 41 | . 5 3 2 1 1 2 4 23 Power 7 | . 1 1 1 . . . . 4 Propulsion 12 | . 1 1 . . . . 1 9 Utility 16 | . 1 1 . . 1 2 2 9 Weapon 6 | . 2 . 1 1 . . 1 1 Highest Loss Streak 5 | . 2 2 1 1 1 1 2 5 To Critical Strikes . | . . . . . . . . . Average Slot Usage (%) 97 | . 96 91 99 98 100 100 99 93 Engine 9 | . 14 14 10 11 11 9 9 3 Treads 8 | . 13 3 11 11 11 9 8 4 Wheel 10 | . 14 24 11 11 11 9 8 6 Device 9 | . 11 6 10 6 . 15 9 10 Storage 10 | . 14 14 11 11 11 9 9 7 Processor 1 | . . . . . . . . 4 Hackware 13 | . . . 10 15 22 11 9 27 Protection 10 | . . . 11 11 11 18 26 6 Energy Gun 2 | . 7 7 . . . . 7 . Ballistic Gun 9 | . 19 14 11 8 11 6 6 5 Ballistic Cannon 4 | . . 6 8 9 10 6 . . Impact Weapon 1 | . . . . . . 2 1 2 Slashing Weapon 2 | . . . 1 1 . 2 2 4 Naked Turns . | . . . . . . . . . Heaviest Build 52 | 11 28 32 42 42 44 52 49 50 Greatest Support 44 | 10 24 24 20 12 12 12 12 44 Greatest Overweight (x) 10 | 1 2 2 3 3 3 4 4 10 Average Overweight (x) 2 | . 1 1 2 2 3 3 3 2 Largest Inventory Capacity 15 | 8 15 15 15 15 15 15 15 15 Average Capacity 14 | 7 14 15 15 15 15 15 15 15 Most Carried 15 | 6 14 15 15 15 15 15 15 15 Average Carried 13 | 3 8 12 13 14 14 13 14 13 Final Capacity 15 | 8 15 15 15 15 15 15 15 5 Final Carried 15 | 6 12 13 15 15 14 15 15 5 Class Distribution -------------------- 61% | Mutant 22% | Bothacker-Mutant 16% | Hacker-Mutant Dominant Class ---------------- Mutant | -10/Materials Mutant | -10/Mines Mutant | -9/Materials Mutant | -9/Storage Hacker-Mutant | -9/Garrison Mutant | -8/Materials Mutant | -8/Garrison Bothacker-Mutant | -7/Factory Resources | -11 -10 -10 -9 -9 -9 -8 -8 -7 ----------- Run | Scr Mat Min Mat Sto Gar Mat Gar Fac Matter Collected 3382 | 185 341 111 732 446 209 403 238 717 Remotely . | . . . . . . . . . Salvage Created 4269 | . 400 81 693 712 225 569 532 1057 Parts 257 | . 26 2 60 55 17 39 30 28 Haulers Intercepted 6 | . . . 2 1 . 3 . . Recyclers Shooed 4 | . . . 1 . . 1 . 2 Parts Field Recycled . | . . . . . . . . . Retrieved Matter . | . . . . . . . . . Parts Self-Destructed . | . . . . . . . . . Prevented . | . . . . . . . . . Kills | -11 -10 -10 -9 -9 -9 -8 -8 -7 ------- Run | Scr Mat Min Mat Sto Gar Mat Gar Fac Combat Hostiles Destroyed 127 | . 13 8 22 19 11 14 18 22 Melee 8 | . . . . . . . 1 7 Guns 62 | . 13 7 9 8 2 6 10 7 Cannons 33 | . . 1 10 11 4 7 . . AOE 18 | . . . 3 . 5 . 7 3 Classes Destroyed 13 | . 2 1 5 1 1 1 1 1 Worker 4 | . . . . 3 . 1 . . Hauler 6 | . . . 2 1 . 3 . . Recycler 5 | . . . 1 . . 1 . 3 Operator 2 | . . . 1 1 . . . . Watcher 4 | . . . 1 1 . 1 . 1 Swarmer 46 | . 5 3 8 2 4 9 12 3 Grunt 46 | . 8 . 10 9 6 2 2 9 Brawler 3 | . . . . . . . 1 2 Duelist 1 | . . . . . 1 . . . Sentry 23 | . . . 4 8 . 2 3 6 Hunter 3 | . . . . . . 1 . 2 Programmer 1 | . . . . . . . . 1 Assembled 5 | . . 5 . . . . . . Best Kill Streak 8 | . 4 4 7 7 8 6 6 6 Combat Bots Only 8 | . 4 4 7 5 8 4 6 6 Max Kills in Single Turn 4 | . 2 1 3 2 4 1 3 2 Gunslinging 1 | . 1 . . . . . 1 . Exploded 4 | . . . 3 . 4 . 3 2 Melee 1 | . . . . . . . 1 1 Uniques/NPCs Destroyed . | . . . . . . . . . Combat | -11 -10 -10 -9 -9 -9 -8 -8 -7 -------- Run | Scr Mat Min Mat Sto Gar Mat Gar Fac Damage Taken 7071 | 11 549 474 407 667 138 498 763 3564 Core 1161 | 10 59 60 33 42 22 84 127 724 Absorbed by Shields 41 | . . . . . 41 . . . Redirected to Shielding 3 | . . . 3 . . . . . Regen/Repaired (Parts) 390 | . . . 194 196 . . . . Core Remaining (%) 70 | 96 . 48 . . 75 . 61 . Volleys Fired 247 | . 40 24 35 40 15 31 26 36 Largest 2 | . 2 2 2 2 2 2 2 2 Hottest 89 | . 70 69 69 89 67 67 68 80 Shots Fired 466 | . 80 45 68 79 27 62 44 61 Gun 325 | . 76 37 33 39 13 31 42 54 Cannon 129 | . . 8 33 40 12 31 . 5 Launcher 12 | . 4 . 2 . 2 . 2 2 Special . | . . . . . . . . . Kinetic 387 | . 50 31 66 75 25 62 24 54 Thermal 45 | . 26 14 . . . . . 5 Explosive 12 | . 4 . 2 . 2 . 2 2 Electromagnetic 22 | . . . . 4 . . 18 . Robot Hit Streak 16 | . 8 5 8 16 6 8 8 11 Robot Miss Streak 15 | . 2 15 8 7 4 5 3 10 Penetration Max . | . . . . . . . . . Secondary Targets 7 | . 2 . . . . . 2 3 Max Gunslinging Chain 1 | . 1 . . . . . 1 1 Shots Hit Robots 418 | . 55 25 51 59 19 51 42 116 Core Hits 312 | . 25 17 53 52 23 35 26 81 Critical Kills 3 | . . . . . . . . 3 Critical Parts Destroyed 11 | . 1 . 1 . . 2 . 7 Critical Strikes 17 | . 2 . 1 . . 2 . 12 Burn 1 | . 1 . . . . . . . Destroy 2 | . 1 . 1 . . . . . Smash 13 | . . . . . . 2 . 11 Sever 1 | . . . . . . . . 1 Melee Attacks 111 | . . . 2 5 . 12 10 82 Impact 69 | . . . . . . 11 4 54 Slashing 33 | . . . 2 5 . 1 6 19 Piercing . | . . . . . . . . . Sneak Attacks 12 | . . . 1 . . 2 . 9 Combat Hostiles . | . . . . . . . . . Follow-up Attacks 13 | . . . . . . . 2 11 Damage Inflicted 10335 | 2 562 271 1415 1354 685 1082 1462 3502 Guns 3825 | . 495 205 592 596 112 318 486 1021 Cannons 1705 | . . 66 441 620 173 405 . . Explosions 1867 | . 67 . 320 108 400 . 642 330 Melee 2936 | . . . 62 30 . 359 334 2151 Ramming 2 | 2 . . . . . . . . Kinetic 4870 | . 257 196 1033 1134 285 723 221 1021 Thermal 691 | . 238 75 . 108 . . 270 . Explosive 1489 | . 67 . 320 . 400 . 372 330 Electromagnetic 347 | . . . . 82 . . 265 . Impact 2131 | . . . . . . 359 128 1644 Slashing 805 | . . . 62 30 . . 206 507 Piercing . | . . . . . . . . . Highest Corruption 4 | . . 4 . . . . . . Average Corruption 4 | . . 4 . . . . . . Corruption Purged . | . . . . . . . . . Corruption Blocked . | . . . . . . . . . Effects 7 | . . 7 . . . . . . Message Errors 5 | . . 5 . . . . . . Matter Fused 1 | . . 1 . . . . . . Data Loss (major) 1 | . . 1 . . . . . . Overload Shots . | . . . . . . . . . Overflow Damage 760 | . . . 62 . . 129 94 475 Projectiles . | . . . . . . . . . Explosions 141 | . . . 62 . . . 79 . Melee 619 | . . . . . . 129 15 475 Knockbacks 40 | . . 2 6 13 2 14 . 3 Impact 7 | . . . . . . 4 . 3 Kinetic 32 | . . 2 6 13 2 9 . . Secondary 1 | . . . . . . 1 . . Self-Inflicted Damage 67 | 1 . . . 39 . . 27 . Shots 2 | . . . . 1 . . 1 . Rammed 2 | 1 . . . . . . . 1 Targets Rammed 2 | 1 . . . . . . . 1 Kicked . | . . . . . . . . . Crushed . | . . . . . . . . . Highest Temperature 234 | . 32 49 131 197 50 24 3 234 Average Temperature 38 | . 11 25 51 54 22 12 3 106 Received Heat Transfer 1880 | . 219 40 114 252 58 45 225 927 Siege Activations . | . . . . . . . . . Robots Corrupted . | . . . . . . . . . Combat Hostiles . | . . . . . . . . . Parts Fried 12 | . . . . . . 3 . 9 Impact Corruptions 22 | . . . . . . 6 1 15 Robots Melted . | . . . . . . . . . Combat Hostiles . | . . . . . . . . . Parts Melted . | . . . . . . . . . Heat Transferred 1402 | . 777 175 . 150 . . 300 . Parts Sabotaged . | . . . . . . . . . Parts Stolen . | . . . . . . . . . Parts Stripped . | . . . . . . . . . Power Chain Reactions 4 | . . . . 1 . . 3 . Missiles Intercepted . | . . . . . . . . . Alert | -11 -10 -10 -9 -9 -9 -8 -8 -7 ------- Run | Scr Mat Min Mat Sto Gar Mat Gar Fac Peak Influence 712 | . 328 123 689 640 712 427 712 629 Initial 416 | . . 83 47 227 416 347 276 373 Average 329 | . 171 86 281 389 601 331 497 355 Maximum Alert Level 3 | . 1 . 2 2 3 2 3 2 Low Security (%) 22 | 100 63 100 42 . . 6 . 1 Level 1 43 | . 36 . 35 55 . 58 22 68 Level 2 31 | . . . 21 44 61 35 68 29 Level 3 2 | . . . . . 38 . 9 . Level 4 . | . . . . . . . . . Level 5 . | . . . . . . . . . High Security . | . . . . . . . . . Max Security . | . . . . . . . . . Squads Dispatched 27 | . 3 1 3 5 . 2 . 13 Investigation 12 | . 3 1 2 2 . 1 . 3 Extermination 1 | . . . . . . . . 1 Reinforcement 5 | . . . 1 2 . 1 . 1 Assault . | . . . . . . . . . Garrison 9 | . . . . 1 . . . 8 Intercept . | . . . . . . . . . Searches Triggered . | . . . . . . . . . Construction Impeded 1 | . . . . . . . . 1 Haulers Reinforced . | . . . . . . . . . Active Scanning Responses . | . . . . . . . . . Cargo Convoy Interrupts . | . . . . . . . . . Stealth | -11 -10 -10 -9 -9 -9 -8 -8 -7 --------- Run | Scr Mat Min Mat Sto Gar Mat Gar Fac Distress Signals 5 | . 2 . 2 1 . . . . Communications Jammed . | . . . . . . . . . Distress Signals . | . . . . . . . . . Times Spotted 180 | . 22 11 29 25 11 23 18 41 Peak Tracking Total 7 | . 7 4 7 5 7 5 6 5 Tactical Retreats 17 | . 3 1 5 1 1 4 . 2 Traps | -11 -10 -10 -9 -9 -9 -8 -8 -7 ------- Run | Scr Mat Min Mat Sto Gar Mat Gar Fac Traps Triggered 11 | . 2 . . 1 3 . 2 3 Indirectly . | . . . . . . . . . Trap Hack Attempts . | . . . . . . . . . Triggered . | . . . . . . . . . Disarmed . | . . . . . . . . . Reprogrammed . | . . . . . . . . . Reused . | . . . . . . . . . Traps Extracted . | . . . . . . . . . Installed . | . . . . . . . . . Triggered . | . . . . . . . . . Machines | -11 -10 -10 -9 -9 -9 -8 -8 -7 ---------- Run | Scr Mat Min Mat Sto Gar Mat Gar Fac Machines Disabled 6 | . . . 1 2 1 . 1 1 Max in Single Turn 1 | . . . 1 1 1 . 1 . Garrison Access 1 | . . . . . . . . 1 Garrison Relay 1 | . . . . . . . 1 . Machines Sabotaged . | . . . . . . . . . Garrisons Compromised . | . . . . . . . . . Overloaded Fab Kills . | . . . . . . . . . Hacking | -11 -10 -10 -9 -9 -9 -8 -8 -7 --------- Run | Scr Mat Min Mat Sto Gar Mat Gar Fac Machines Accessed 43 | . 8 1 10 10 . 4 . 10 Terminals 28 | . 8 . 7 5 . 3 . 5 Fabricators 1 | . . . . . . . . 1 Repair Stations 4 | . . . 1 2 . . . 1 Recycling Units 5 | . . . 2 2 . . . 1 Scanalyzers 1 | . . . . . . . . 1 Garrison Access 3 | . . . . 1 . 1 . 1 Total Hacks 139 | . 18 1 39 33 . 17 . 31 Successful 75 | . 5 1 24 19 . 8 . 18 Failed 64 | . 13 . 15 14 . 9 . 13 Catastrophic 8 | . 3 . 3 1 . 1 . . Database Lockouts . | . . . . . . . . . Manual 68 | . 9 . 31 10 . 5 . 13 Terminals 104 | . 18 . 32 21 . 16 . 17 Fabricators 2 | . . . . . . . . 2 Repair Stations 15 | . . . 4 8 . . . 3 Recycling Units 7 | . . . 3 3 . . . 1 Scanalyzers 7 | . . . . . . . . 7 Garrison Access 3 | . . . . 1 . 1 . 1 Terminal Hacks 31 | . 3 1 11 7 . 5 . 4 Part Schematic 2 | . . . 2 . . . . . Robot Analysis 3 | . . . 3 . . . . . Prototype ID Bank 4 | . . . 1 3 . . . . Open Door 2 | . . 1 . 1 . . . . Branch Access Points 2 | . . . 1 . . . . 1 Terminal Index 1 | . 1 . . . . . . . Alert Level 1 | . . . . 1 . . . . Unreport Threat 6 | . . . 1 1 . 2 . 2 Locate Traps 4 | . . . 1 . . 2 . 1 Hauler Manifests 2 | . . . 1 . . 1 . . Zone Layout 4 | . 2 . 1 1 . . . . Fabricator Hacks 1 | . . . . . . . . 1 Network Status 1 | . . . . . . . . 1 Repair Station Hacks 12 | . . . 4 6 . . . 2 Scan Component 7 | . . . 2 3 . . . 2 Repair 5 | . . . 2 3 . . . . Recycling Unit Hacks 1 | . . . . 1 . . . . Report Inventory 1 | . . . . 1 . . . . Scanalyzer 4 | . . . . . . . . 4 Insert Component 2 | . . . . . . . . 2 Analyze 2 | . . . . . . . . 2 Garrison Access Hacks 3 | . . . . 1 . 1 . 1 Unlock Access 2 | . . . . 1 . 1 . . Seal Access 1 | . . . . . . . . 1 Unauthorized Hacks 23 | . 2 . 9 4 . 2 . 6 Terminals 17 | . 2 . 7 2 . 2 . 4 Track 3 | . . . 2 . . . . 1 Assimilate 1 | . . . . . . . . 1 Botnet 12 | . 2 . 4 2 . 2 . 2 Operators 1 | . . . 1 . . . . . Fabricators 1 | . . . . . . . . 1 Liberate 1 | . . . . . . . . 1 Repair Stations . | . . . . . . . . . Recycling Units 5 | . . . 2 2 . . . 1 Tunnel 5 | . . . 2 2 . . . 1 Scanalyzers . | . . . . . . . . . Garrison Access . | . . . . . . . . . Data Cores Recovered . | . . . . . . . . . Used . | . . . . . . . . . Hacking Detections 31 | . 8 . 7 6 . 3 . 7 Full Trace Events 3 | . 2 . . . . 1 . . Feedback Events 1 | . . . . . . 1 . . Hackware Fried 1 | . . . . . . 1 . . Feedback Blocked . | . . . . . . . . . Robot Schematics Acquired . | . . . . . . . . . Robots Built . | . . . . . . . . . Authchips . | . . . . . . . . . Time . | . . . . . . . . . Total Robot Build Rating . | . . . . . . . . . Part Schematics Acquired 4 | . . . 2 . . . . 2 Parts Built . | . . . . . . . . . Authchips . | . . . . . . . . . Time . | . . . . . . . . . Total Part Build Rating . | . . . . . . . . . Parts Repaired 5 | . . . 2 3 . . . . Time 160 | . . . 58 102 . . . . Parts Recycled . | . . . . . . . . . Recycled Matter . | . . . . . . . . . Retrieved Matter . | . . . . . . . . . Retrieved Components . | . . . . . . . . . Parts Scanalyzed 2 | . . . . . . . . 2 Part Schematics Acquired 2 | . . . . . . . . 2 Parts Damaged 1 | . . . . . . . . 1 Bothacking | -11 -10 -10 -9 -9 -9 -8 -8 -7 ------------ Run | Scr Mat Min Mat Sto Gar Mat Gar Fac Used RIF Installer 2 | . . . . . 1 . 1 . Coupler Efficiency 1 | . . . . . . . 1 . Robots Hacked 5 | . . . . . . . . 5 Non-combat 3 | . . . . . . . . 3 Combat 2 | . . . . . . . . 2 Robot Hacks Applied 6 | . . . . . . . . 6 find_fabricator 1 | . . . . . . . . 1 drop_inventory 3 | . . . . . . . . 3 formatsys_high 2 | . . . . . . . . 2 Relay Couplers Released 5 | . . . . . . . 5 . Machine Destruction 5 | . . . . . . . 5 . Attached 3 | . . . . . . . . 3 Fabnet Peak Effective % . | . . . . . . . . . Robots Rewired . | . . . . . . . . . Allies Hacked . | . . . . . . . . . Hacks Repelled . | . . . . . . . . . Allies | -11 -10 -10 -9 -9 -9 -8 -8 -7 -------- Run | Scr Mat Min Mat Sto Gar Mat Gar Fac Total Allies 3 | . . . . . . . . 3 Largest Group 2 | . . . . . . . . 2 Highest-Rated Group 53 | . . . . . . . . 53 Highest-Rated Ally 32 | . . . . . . . . 32 Total Orders . | . . . . . . . . . Ally Attacks 13 | . . . . . . . . 13 Total Damage 824 | . . . . . . . . 824 Kills 9 | . . . . . . . . 9 Allies Corrupted 1 | . . . . . . . . 1 Allies Melted . | . . . . . . . . . Intel | -11 -10 -10 -9 -9 -9 -8 -8 -7 ------- Run | Scr Mat Min Mat Sto Gar Mat Gar Fac Robot Analysis Total 3 | . . . 3 . . . . . Derelict Logs Recovered 1 | . . 1 . . . . . . Drone Launches . | . . . . . . . . . Drone Recoveries . | . . . . . . . . . Exploration | -11 -10 -10 -9 -9 -9 -8 -8 -7 ------------- Run | Scr Mat Min Mat Sto Gar Mat Gar Fac Turns Passed 5590 | 65 660 375 784 646 221 723 710 1406 Spaces Moved 2936 | 54 365 263 406 281 107 348 388 724 Core 12 | 2 . . . . . . . 10 Treads 203 | . 86 . 13 . . . . 104 Legs . | . . . . . . . . . Wheels 2721 | 52 279 263 393 281 107 348 388 610 Hover . | . . . . . . . . . Flight . | . . . . . . . . . Fastest Speed 50 | 50 95 105 120 120 135 135 135 105 Average Speed 134 | 91 139 108 135 133 135 145 144 133 Slowest Speed 550 | 95 240 120 240 135 135 150 150 550 Overloaded Moves . | . . . . . . . . . Propulsion Burnouts . | . . . . . . . . . Robots Hopped . | . . . . . . . . . Cave-ins Triggered 1 | . . . . . . . . 1 Exploration Rate (%) 41 | 4 65 49 37 59 43 27 63 22 Regions Visited 8 Branch Regions 2 Pre-discovered Areas 5 | . . . 2 2 . . . 1 Known Exits Taken 3 | . . . 1 1 . 1 . . Unknown Exits Taken 3 | 1 1 1 . . . . . . Scrap Searched . | . . . . . . . . . Spaces Dug 14 | . . . 4 1 . 2 . 7 Terrain Destroyed 80 | . 13 . 14 7 7 2 13 24 Melee 11 | . . . 1 1 . 2 . 7 Projectile . | . . . . . . . . . AOE 69 | . 13 . 13 6 7 . 13 17 Terrain Rammed . | . . . . . . . . . Walls Destroyed . | . . . . . . . . . Machines Disabled . | . . . . . . . . . Actions | -11 -10 -10 -9 -9 -9 -8 -8 -7 --------- Run | Scr Mat Min Mat Sto Gar Mat Gar Fac Total 3934 | 66 445 311 566 460 155 479 476 976 Wait 349 | . 11 15 79 107 8 73 7 49 Move 2930 | 53 364 262 405 281 106 348 387 724 Hop . | . . . . . . . . . Pick Up 69 | 6 9 3 11 6 . 5 9 20 Fast Attach 27 | 6 3 1 4 3 . . 1 9 Attach 40 | . 6 2 6 1 1 4 5 15 Detach 10 | . 3 1 3 . . . 1 2 Swap 77 | . 5 1 13 11 3 5 10 29 Drop 42 | . 4 2 8 6 . 2 6 14 Fire 247 | . 40 24 35 40 15 31 26 36 Melee 95 | . . . 2 5 . 11 8 69 Ram 2 | 1 . . . . . . . 1 Kick . | . . . . . . . . . Crush . | . . . . . . . . . Escape Stasis 46 | . . . . . 22 . 16 8 Rewire . | . . . . . . . . . Trap . | . . . . . . . . . Miscellaneous . | . . . . . . . . . Route ------- -11/Scrapyard -10/Materials (discovered 3 exits: *Mat x2 / *Min) -10/Mines -9/Materials (discovered 4 exits: *Min x2 / *Sto x2) -9/Storage -9/Garrison -8/Materials -8/Garrison (discovered 3 exits: *Fac x3) -7/Factory (discovered 3 exits: [*Fac] / *Low x2) History --------- Turn | Location | Event 2 | -11/Scrapyard | Met Revision 17 17 | -11/Scrapyard | Discovered new exit (range 15) 66 | -11/Scrapyard | Entered Materials 308 | -10/Materials | Build established: Mutant 458 | -10/Materials | Discovered new exit (range 7) 545 | -10/Materials | Discovered new exit (range 7) 668 | -10/Materials | Discovered new exit (range 8) 726 | -10/Materials | Entered Mines 727 | -10/Mines | Assembled infested the area 916 | -10/Mines | Met a Derelict shopkeep closing up shop 987 | -10/Mines | Received a Rocket Launcher from a helpful Derelict 1034 | -10/Mines | Learned Materials terminal intel 1092 | -10/Mines | Discovered new exit (range 9) 1101 | -10/Mines | Entered Materials 1101 | -9/Materials | Evolved 2 slots: Utility x2 1102 | -9/Materials | Loaded intel: 12 terminal locations 1125 | -9/Materials | Discovered new exit (range 6) 1219 | -9/Materials | Discovered new exit (range 6) 1231 | -9/Materials | Repaired Arm. Wheel? 1293 | -9/Materials | Repaired Lgt. Treads 1519 | -9/Materials | Identified exit to Mines 1519 | -9/Materials | Identified exit to Storage 1810 | -9/Materials | Destroyed 7 combat bots 1885 | -9/Materials | Entered Storage 1952 | -9/Storage | Repaired Hpw. Shotgun 1961 | -9/Storage | Repaired Flak Cannon 1989 | -9/Storage | Repaired Structural Scanner? 2446 | -9/Storage | Garrison activated, responded to threat 2531 | -9/Storage | Identified exit to Garrison 2531 | -9/Storage | Entered Garrison 2552 | -9/Garrison | Build established: Hacker-Mutant 2554 | -9/Garrison | Triggered checkpoint 2606 | -9/Garrison | Triggered checkpoint 2609 | -9/Garrison | Triggered checkpoint 2652 | -9/Garrison | Destroyed 8 combat bots 2721 | -9/Garrison | Discovered new exit (range 15) 2747 | -9/Garrison | Installed Relay Interface Framework 2752 | -9/Garrison | Entered Materials 2752 | -8/Materials | Evolved 2 slots: Utility x2 2946 | -8/Materials | Hacking Suite fried by hacking feedback 3244 | -8/Materials | Build established: Mutant 3475 | -8/Materials | Identified exit to Garrison 3475 | -8/Materials | Entered Garrison 3534 | -8/Garrison | Triggered checkpoint 3630 | -8/Garrison | Discovered new exit (range 15) 3863 | -8/Garrison | Discovered new exit (range 12) 3926 | -8/Garrison | Triggered checkpoint 4021 | -8/Garrison | Discovered new exit (range 10) 4040 | -8/Garrison | Expanded RIF knowledge: Coupler Efficiency 4074 | -8/Garrison | Triggered checkpoint 4119 | -8/Garrison | Garrison Relay disabled 4185 | -8/Garrison | Entered Factory 4185 | -7/Factory | Evolved 2 slots: Utility x2 4284 | -7/Factory | Identified exit to Lower Caves 4526 | -7/Factory | Build established: Bothacker-Mutant 4617 | -7/Factory | Lost 4 parts (1n3u) 4882 | -7/Factory | Garrison activated, responded to threat 4943 | -7/Factory | Lost 4 parts (1p2n1w) 5277 | -7/Factory | Discovered new exit (range 9) 5313 | -7/Factory | Garrison activated, responded to threat 5445 | -7/Factory | Core integrity fell below 50% 5485 | -7/Factory | Lost 5 parts (1p2n2u) 5489 | -7/Factory | Garrison activated, responded to threat 5572 | -7/Factory | Lost 4 parts (1p2n1u) 5592 | -7/Factory | Crushed by falling debris 5592 | -7/Factory | Smashed by cave-in Last Messages --------------- 05567_ K-01 Serf collects debris. 05569_ U-05 Engineer builds a Wall. 05571_ K-01 Serf collects debris. 05572_ Acquired Lgt. Treads. 05573_ U-05 Engineer builds a Wall. 05574_ K-01 Serf collects debris. 05575_ U-05 Engineer builds a Wall. 05578_ K-01 Serf collects debris. 05584_ U-05 Engineer lays Concrete. 05587_ K-01 Serf collects debris. 05587_ U-05 Engineer lays Concrete. 05591_ K-01 Serf collects debris. 05592_ The unstable cave ceiling collapses. 05592_ Crushed by falling debris. 05592_ Lrg. Storage Unit destroyed. 05592_ System corrupted by crushing effect (+2). 05592_ Relay Coupler [Hunter] destroyed. 05592_ System corrupted by crushing effect (+3). 05592_ Relay Coupler [NC] destroyed. 05592_ System corrupted by crushing effect (+1). Map ----- +----------------------------------------------------+ | ?????????????????????????????????????????????????? | | ?????????????????????????????????????????????????? | | ?????????????????????????????????????????????????? | | ?????????????????????????????????????????????????? | | ?????????????????????????????????????????????????? | | ?????????????????????????????????????????????????? | | ?????????????????????????????????????????????????? | | ?????????????????????????????????????????????????? | | ?????????????????????????????????????????????????? | | ?????????????????????????????????????????????????? | | ?????????????????????????????????????????????????? | | ?????????????????????????????????????????????????? | | ?????????????????????????????????????????????????? | | ?????????????????????????????????????????????????? | | ?????????????????????????????????????????????????? | | ?????????????????????????????????????????????????? | | ?????????????????????????????????????????????????? | | ?????????????????????????????????????????????????? | | ?????????????????????????????????????????????????? | | ?????????????????????????????????????????????????? | | ??????????????????#####+#####????????????????????? | | ??????????????????# #????????????????????? | | ??????????????????# #????????????????????? | | ??????????????????# ####?????????????????? | | ???????????????????? !| # #####?"???????????? | | ??????????????????????##!@* ## """?????????? | | ??????????????????????# !/[ # ??????## | | ??????????????????????# # ??????# | | ??????????????????????# ##/###+####### | | ??????????????????????# # | | ??????????????????????#"" k # | | ??????????????????????#"" + | | ??????????????????????#"" u # ### T##### | | ??????????????????????#G u # ##???????# | | ??????????????????????#"" # ##???????## | | ??????????????????????#"" # ##????????? | | ??????????????????????#"" # ########### | | ??????????????????????# # ########### | | ??????????????????????## ### # | | ???????????????????????#### ###### # ! | | ???????????????????????#### ######## # | | ?????????????????????######+######## + | | ?????????????????????##[[ % #### # == | | ?????????????????????##[ """ #### # =/= | | ?????????????????????# "Y" #### # = | | ?????????????????????## " " #### ########### | | ?????????????????????## """ [ #### ########### | | ???????????????######## """ #### ##########? | | ???????????????######## """ #### ##! [ ##? | | ???????????????## ^ # ### # ##? | +----------------------------------------------------+ Best States ------------- Heat Dissipation 61 Energy Generation 14 Energy Capacity 280 Matter Stores 300 Matter Capacity 300 Sight Range 16 Terrain Scan Density 10 Armor Coverage 450 Power Shielding 33 Melee Speed Boost 20 Evasion (%) 44 Melee Accuracy 6 Recoil Reduction 2 Offensive Hacking 10 Defensive Hacking 10 Relay Coupler Types 3 Relay Coupler Value 41 Item Schematics ----------------- Huge Storage Unit | -9/Materials | Hacked Hcp. Storage Unit | -9/Materials | Hacked Imp. Datajack | -7/Factory | Scanalyzed Arm. Wheel | -7/Factory | Scanalyzed Robot Schematics ------------------ None Fabricated ------------ Nothing Alien Tech Used ----------------- None Achievements -------------- None Challenges ------------ None Game ------ Seed CloakingPhysicsGravjet Manual? 0 Play Time 01:00:20 Cumulative 256.6 hours Start 2022.05.31 @ 23:46:47 End 2022.06.01 @ 00:47:03 Sessions 1 Manual Loads 0 Difficulty Rogue Special Mode None Game No. 74 Rogue 74 Adventurer 0 Explorer 0 Win Type - Total 14 Types 12/0/2/0/0/0/0/0/0 Lore% 85 Gallery% 85 Achievement% 72 Wizard Run 0 Options --------- ASCII 0 Keyboard 0 Movement Numpad Keybinds 0 Fullscreen 1 Font 14/SmallcapsGlow Map View 84x54 Tactical HUD 1 Map Filters NONE Filters NONE Steam 1 RUN: d8f222e5-d24a-4f81-a515-612c6d687778